Cogmind - Beta 13 @@@ ROGUE MODE // 2024.05.02 @ 12:28:59 Player: UberDoot Result: Core destroyed Performance ------------- Evolutions (1) 500 Regions Visited (3) 600 Robots Destroyed (68) 340 Value Destroyed (1753) 1753 Prototype IDs (4) 80 Alien Tech Used (0) 0 Bonus (131) 131 TOTAL SCORE: 3404 Bonus ------- High Alert Combat Kills 131 Cogmind --------- Core Integrity 0/400 Matter 215/300 Energy 261/265 System Corruption 0% Temperature Critical (551) Movement Treading (160) Location -9/Storage Parts ------- > --- POWER (1) -------- Improved Ion Engine > --- PROPULSION (3) --- Light Treads Light Treads > --- UTILITY (3) ------ Large Storage Unit Visual Processing Unit Hardened Light Armor Plating > --- WEAPON (2) ------- Beam Rifle Heavy Assault Rifle > --- INVENTORY (15) --- Ion Engine Wheel Improved Heat Sink Huge Storage Unit High-capacity Matter Pod (200) Structural Scanner Sensor Array Melee Analysis Suite Hardened Light Armor Plating Hacking Suite Drone Bay (2/2) Assault Rifle Improved Light Cannon Rocket Launcher Katana Peak State ------------ > --- POWER ------------ Ion Engine > --- PROPULSION ------- Aluminum Leg Aluminum Leg Improved Aluminum Leg > --- UTILITY ---------- Improved Heat Sink Large Storage Unit Visual Processing Unit > --- WEAPON ----------- Beam Rifle Improved Assault Rifle > --- INVENTORY -------- Improved Ion Engine Improved Treads Wheel Heat Sink Huge Storage Unit High-capacity Matter Pod Structural Scanner Sensor Array Melee Analysis Suite Light Armor Plating Hacking Suite Particle Gun Assault Rifle Grenade Launcher Katana [Rating: 18] Favorites ----------- Power Light Ion Engine Engine Light Ion Engine Propulsion Light Treads Treads Light Treads Leg Aluminum Leg Utility Large Storage Unit Device Heat Sink Storage Large Storage Unit Processor Visual Processing Unit Protection Hardened Light Armor Plating Weapon Beam Cannon Energy Gun Beam Rifle Energy Cannon Beam Cannon Ballistic Gun Light Assault Rifle Launcher Rocket Launcher Slashing Weapon Katana Build | -11 -10 -9 -9 ------- Run | Yrd Mat Mat Sto Slots Evolved 2 | . . 2 . Power . | . . . . Propulsion 1 | . . 1 . Utility 1 | . . 1 . Weapon . | . . . . Parts Attached 54 | 8 12 33 1 Power 6 | 1 1 4 . Engine 6 | 1 1 4 . Core . | . . . . Reactor . | . . . . Propulsion 20 | 2 3 15 . Treads 8 | . 3 5 . Leg 12 | 2 . 10 . Wheel . | . . . . Hover . | . . . . Flight . | . . . . Utility 8 | 2 2 3 1 Device 3 | 1 1 1 . Storage 3 | 1 1 1 . Processor 1 | . . 1 . Hackware . | . . . . Protection 1 | . . . 1 Artifact . | . . . . Weapon 20 | 3 6 11 . Energy Gun 5 | 2 . 3 . Energy Cannon 3 | . 2 1 . Ballistic Gun 9 | 1 3 5 . Ballistic Cannon . | . . . . Launcher 2 | . 1 1 . Special Weapon . | . . . . Impact Weapon . | . . . . Slashing Weapon 1 | . . 1 . Piercing Weapon . | . . . . Special Melee Weapon . | . . . . Unidentified Prototypes 2 | . . 2 . Parts Lost 15 | . 6 8 1 Power 3 | . 1 2 . Propulsion 6 | . 2 3 1 Utility 1 | . 1 . . Weapon 5 | . 2 3 . Highest Loss Streak 6 | . 6 2 1 To Critical Strikes . | . . . . Average Slot Usage (%) 93 | . 96 90 97 Engine 11 | . 13 10 11 Treads 15 | . 21 8 22 Leg 13 | . 5 21 9 Device 11 | . 12 11 1 Storage 12 | . 14 11 11 Processor 3 | . . 6 11 Energy Gun 3 | . 1 5 11 Energy Cannon 8 | . 12 4 . Ballistic Gun 11 | . 13 10 11 Naked Turns . | . . . . Heaviest Build 38 | 13 28 34 38 Greatest Support 63 | 20 40 63 40 Greatest Overweight (x) 3 | . . 3 . Average Overweight (x) . | . . . . Largest Inventory Capacity 15 | 8 15 15 15 Average Capacity 12 | 6 10 15 15 Most Carried 15 | 7 10 15 15 Average Carried 10 | 4 7 13 14 Final Capacity 15 | 8 15 15 15 Final Carried 15 | 6 10 15 15 Class Distribution -------------------- 59% | Mutant 40% | Scavenger-Mutant Dominant Class ---------------- Mutant | -10/Materials Scavenger-Mutant | -9/Materials Scavenger-Mutant | -9/Storage Resources | -11 -10 -9 -9 ----------- Run | Yrd Mat Mat Sto Matter Collected 1385 | 202 510 576 97 Remotely . | . . . . Salvage Created 2222 | 43 461 1356 362 Parts 163 | 6 33 91 33 Haulers Intercepted 3 | . 1 2 . Recyclers Shooed 1 | . . 1 . Parts Field Recycled . | . . . . Retrieved Matter . | . . . . Parts Self-Destructed . | . . . . Prevented . | . . . . Kills | -11 -10 -9 -9 ------- Run | Yrd Mat Mat Sto Combat Hostiles Destroyed 55 | . 16 28 11 Melee 2 | . . 2 . Guns 35 | . 1 23 11 Cannons 13 | . 12 1 . AOE 5 | . 3 2 . Classes Destroyed 10 | 1 4 5 . Builder 2 | . 1 1 . Tunneler 3 | 2 . 1 . Hauler 3 | . 1 2 . Recycler 2 | . . 2 . Operator 1 | . . 1 . Watcher 2 | . . 1 1 Swarmer 16 | . 6 6 4 Grunt 30 | . 10 14 6 Duelist 1 | . . 1 . Sentry 8 | . . 7 1 Best Kill Streak 12 | 1 6 11 12 Combat Bots Only 11 | . 6 9 11 Max Kills in Single Turn 2 | 1 2 2 2 Gunslinging 1 | . . 1 1 Exploded 2 | . 2 1 . Melee 1 | . . 1 . Uniques/NPCs Destroyed . | . . . . Combat | -11 -10 -9 -9 -------- Run | Yrd Mat Mat Sto Hostile Shots Fired 301 | . 87 173 41 Missed 64 | . 14 47 3 Damage Taken 2920 | . 788 1602 530 Core 590 | . 168 220 202 Absorbed by Shields . | . . . . Regen/Repaired (Parts) 98 | . 70 28 . Core Remaining (%) 66 | 100 32 . . Volleys Fired 167 | 13 42 90 22 Largest 2 | 1 2 2 2 Hottest 88 | 20 80 88 79 Shots Fired 299 | 13 73 169 44 Gun 226 | 13 35 134 44 Cannon 65 | . 35 30 . Launcher 8 | . 3 5 . Special . | . . . . Kinetic 145 | 13 31 79 22 Thermal 142 | . 35 85 22 Explosive 8 | . 3 5 . Electromagnetic 4 | . 4 . . Robot Hit Streak 12 | 5 11 12 8 Robot Miss Streak 4 | 1 2 4 2 Penetration Max . | . . . . Secondary Targets 6 | . . 3 3 Max Gunslinging Chain 1 | . . 1 1 Shots Hit Robots 195 | 10 41 112 32 Core Hits 96 | 3 27 51 15 Critical Kills 1 | . . 1 . Critical Parts Destroyed . | . . . . Critical Strikes 7 | . . 5 2 Burn 5 | . . 3 2 Destroy 2 | . . 2 . Melee Attacks 3 | . . 3 . Impact . | . . . . Slashing 3 | . . 3 . Piercing . | . . . . Sneak Attacks . | . . . . Combat Hostiles . | . . . . Follow-up Attacks . | . . . . Damage Inflicted 3460 | 117 826 2050 467 Guns 2174 | 117 180 1410 467 Cannons 809 | . 440 369 . Explosions 411 | . 206 205 . Melee 66 | . . 66 . Ramming . | . . . . Kinetic 1338 | 117 155 813 253 Thermal 1620 | . 440 966 214 Explosive 411 | . 206 205 . Electromagnetic 25 | . 25 . . Impact . | . . . . Slashing 66 | . . 66 . Piercing . | . . . . Highest Corruption 1 | . 1 . . Average Corruption 1 | . 1 . . Corruption Purged . | . . . . Corruption Blocked . | . . . . Effects 2 | . 2 . . Matter Fused 1 | . 1 . . Data Loss (minor) 1 | . 1 . . Overload Shots . | . . . . Overflow Damage . | . . . . Projectiles . | . . . . Explosions . | . . . . Melee . | . . . . Knockbacks . | . . . . Impact . | . . . . Kinetic . | . . . . Secondary . | . . . . Self-Inflicted Damage . | . . . . Shots . | . . . . Rammed . | . . . . Targets Rammed . | . . . . Kicked . | . . . . Crushed . | . . . . Highest Temperature 551 | . 236 37 551 Average Temperature 144 | . 95 14 264 Received Heat Transfer 894 | . 234 528 132 Effects 12 | . . . 12 Shutdowns 2 | . . . 2 Energy Bleed 2 | . . . 2 Matter Decay 2 | . . . 2 Damage (major) 4 | . . . 4 Damage (core) 2 | . . . 2 Siege Activations . | . . . . Robots Corrupted . | . . . . Combat Hostiles . | . . . . Parts Fried . | . . . . Impact Corruptions . | . . . . Robots Melted . | . . . . Combat Hostiles . | . . . . Parts Melted 6 | . . 5 1 Heat Transferred 4107 | . 925 2479 703 Parts Sabotaged . | . . . . Parts Stolen . | . . . . Parts Stripped . | . . . . Power Chain Reactions . | . . . . Alert | -11 -10 -9 -9 ------- Run | Yrd Mat Mat Sto Peak Influence 648 | 10 190 648 530 Initial 273 | . 6 29 273 Average 188 | 2 68 308 331 Maximum Alert Level 2 | . . 2 2 Low Security (%) 63 | 100 100 33 . Level 1 19 | . . 33 73 Level 2 16 | . . 32 26 Level 3 . | . . . . Level 4 . | . . . . Level 5 . | . . . . High Security . | . . . . Max Security . | . . . . Squads Dispatched 10 | . 4 3 3 Investigation 4 | . 2 1 1 Extermination . | . . . . Reinforcement 5 | . 2 2 1 Assault . | . . . . Garrison 1 | . . . 1 Intercept . | . . . . Searches Triggered . | . . . . Construction Impeded . | . . . . Haulers Reinforced . | . . . . Active Scanning Responses . | . . . . Cargo Convoy Interrupts . | . . . . Stealth | -11 -10 -9 -9 --------- Run | Yrd Mat Mat Sto Distress Signals 2 | . . 1 1 Communications Jammed . | . . . . Distress Signals . | . . . . Times Spotted 71 | . 24 34 13 Peak Tracking Total 8 | . 8 4 7 Tactical Retreats 2 | . . 2 . Traps | -11 -10 -9 -9 ------- Run | Yrd Mat Mat Sto Traps Triggered 4 | . 2 1 1 Indirectly . | . . . . Trap Hack Attempts . | . . . . Triggered . | . . . . Disarmed . | . . . . Reprogrammed . | . . . . Reused . | . . . . Traps Extracted . | . . . . Installed . | . . . . Triggered . | . . . . Machines | -11 -10 -9 -9 ---------- Run | Yrd Mat Mat Sto Machines Disabled 3 | . . 3 . Max in Single Turn 1 | . . 1 . Machines Repaired . | . . . . Machines Dismantled . | . . . . Machines Sabotaged . | . . . . Overloaded Fab Kills . | . . . . Hacking | -11 -10 -9 -9 --------- Run | Yrd Mat Mat Sto Machines Accessed 11 | . 6 4 1 Terminals 7 | . 5 1 1 Fabricators . | . . . . Repair Stations 2 | . 1 1 . Recycling Units . | . . . . Scanalyzers 2 | . . 2 . Garrison Access . | . . . . Total Hacks 44 | . 16 27 1 Successful 34 | . 8 25 1 Failed 10 | . 8 2 . Catastrophic 2 | . 2 . . Database Lockouts . | . . . . Manual 6 | . 6 . . Terminals 15 | . 12 2 1 Fabricators . | . . . . Repair Stations 7 | . 4 3 . Recycling Units . | . . . . Scanalyzers 22 | . . 22 . Garrison Access . | . . . . Terminal Hacks 8 | . 5 2 1 Part Schematic 1 | . 1 . . Prototype ID Bank 1 | . 1 . . Open Door 1 | . . . 1 Terminal Index 1 | . . 1 . Alert Level 2 | . 2 . . Hauler Manifests 1 | . 1 . . Zone Layout 1 | . . 1 . Fabricator Hacks . | . . . . Repair Station Hacks 5 | . 3 2 . Scan Component 3 | . 2 1 . Repair 2 | . 1 1 . Recycling Unit Hacks . | . . . . Scanalyzer 21 | . . 21 . Insert Component 9 | . . 9 . Analyze 12 | . . 12 . Garrison Access Hacks . | . . . . Unauthorized Hacks . | . . . . Terminals . | . . . . Fabricators . | . . . . Repair Stations . | . . . . Recycling Units . | . . . . Scanalyzers . | . . . . Garrison Access . | . . . . Data Cores Recovered . | . . . . Used . | . . . . Hacking Detections 9 | . 5 4 . Full Trace Events 1 | . 1 . . Feedback Events 1 | . 1 . . Corruption 1 | . 1 . . Feedback Blocked . | . . . . Robot Schematics Acquired . | . . . . Robots Built . | . . . . Authchips . | . . . . Time . | . . . . Total Robot Build Rating . | . . . . Part Schematics Acquired 10 | . 1 9 . Parts Built . | . . . . Authchips . | . . . . Time . | . . . . Total Part Build Rating . | . . . . Parts Repaired 2 | . 1 1 . Time 52 | . 26 26 . Parts Recycled . | . . . . Recycled Matter . | . . . . Retrieved Matter . | . . . . Retrieved Components . | . . . . Parts Scanalyzed 9 | . . 9 . Part Schematics Acquired 9 | . . 9 . Parts Damaged . | . . . . Bothacking | -11 -10 -9 -9 ------------ Run | Yrd Mat Mat Sto Used RIF Installer . | . . . . Robots Hacked . | . . . . Non-combat . | . . . . Combat . | . . . . Robot Hacks Applied . | . . . . Relay Couplers Released . | . . . . Fabnet Peak Effective % . | . . . . Robots Rewired . | . . . . Allies Hacked . | . . . . Hacks Repelled . | . . . . Allies | -11 -10 -9 -9 -------- Run | Yrd Mat Mat Sto Total Allies . | . . . . Largest Group . | . . . . Highest-Rated Group . | . . . . Highest-Rated Ally . | . . . . Total Orders . | . . . . Ally Attacks . | . . . . Total Damage . | . . . . Kills . | . . . . Allies Corrupted . | . . . . Allies Melted . | . . . . Intel | -11 -10 -9 -9 ------- Run | Yrd Mat Mat Sto Robot Analysis Total . | . . . . Derelict Logs Recovered . | . . . . Drone Launches . | . . . . Drone Recoveries . | . . . . Exploration | -11 -10 -9 -9 ------------- Run | Yrd Mat Mat Sto Turns Passed 2577 | 136 1127 1144 170 Spaces Moved 1230 | 76 608 484 62 Core 4 | 4 . . . Treads 709 | . 474 173 62 Legs 517 | 72 134 311 . Wheels . | . . . . Hover . | . . . . Flight . | . . . . Fastest Speed 50 | 50 120 120 160 Average Speed 148 | 116 151 147 160 Slowest Speed 330 | 120 160 330 160 Overloaded Moves . | . . . . Propulsion Burnouts . | . . . . Robots Hopped . | . . . . Cave-ins Triggered . | . . . . Exploration Rate (%) 34 | 5 76 39 18 Regions Visited 3 Branch Regions 1 Pre-discovered Areas . | . . . . Known Exits Taken . | . . . . Unknown Exits Taken 3 | 1 1 1 . Scrap Searched . | . . . . Spaces Dug . | . . . . Terrain Destroyed 65 | . 20 45 . Melee . | . . . . Projectile . | . . . . AOE 65 | . 20 45 . Terrain Rammed . | . . . . Walls Destroyed . | . . . . Machines Disabled . | . . . . Actions | -11 -10 -9 -9 --------- Run | Yrd Mat Mat Sto Total 1685 | 107 747 741 90 Wait 152 | 4 60 85 3 Move 1227 | 75 607 483 62 Hop . | . . . . Pick Up 42 | 7 15 19 1 Fast Attach 30 | 6 6 18 . Attach 9 | 1 3 5 . Detach 5 | . . 5 . Swap 15 | 1 3 10 1 Drop 35 | . 11 23 1 Fire 167 | 13 42 90 22 Melee 3 | . . 3 . Ram . | . . . . Kick . | . . . . Crush . | . . . . Escape Stasis . | . . . . Rewire . | . . . . Trap . | . . . . Miscellaneous . | . . . . Route ------- -11/Scrapyard -10/Materials (discovered 4 exits: *Mat x2 / [*Min x2]) -9/Materials -9/Storage History --------- Turn | Location | Event 6 | -11/Scrapyard | Discovered new exit (range 16) 137 | -11/Scrapyard | Entered Materials 306 | -10/Materials | Build established: Mutant 366 | -10/Materials | Core integrity fell below 50% 411 | -10/Materials | Lost 6 parts (1p2n1u2w) 489 | -10/Materials | Discovered new exit (range 7) 620 | -10/Materials | Discovered new exit (range 16) 710 | -10/Materials | Discovered new exit (range 5) 911 | -10/Materials | Discovered new exit (range 13) 1160 | -10/Materials | Repaired Lgt. Treads 1264 | -10/Materials | Entered another Materials area 1264 | -9/Materials | Evolved 2 slots: Propulsion x1, Utility x1 1311 | -9/Materials | Repaired Beam Cannon 1993 | -9/Materials | Build established: Scavenger-Mutant 2088 | -9/Materials | Discovered new exit (range 10) 2114 | -9/Materials | Destroyed 9 combat bots 2210 | -9/Materials | Core integrity fell below 50% 2408 | -9/Materials | Entered Storage 2575 | -9/Storage | Core integrity fell below 20% 2577 | -9/Storage | Garrison activated, responded to threat 2579 | -9/Storage | Core destroyed Last Messages --------------- 02571_ K-01 Serf collects debris. 02572_ R-06 Scavenger collects Aluminum Leg. 02574_ G-34 Mercenary destroyed. 02574_ Switching to secondary target: G-34 Mercenary. 02575_ Overheating: Core damaged (-80). 02575_ R-06 Scavenger collects Lgt. Assault Rifle. 02576_ Power failure, Imp. Ion Engine shutdown. 02576_ K-01 Serf collects debris. 02577_ Overheating: Lgt. Treads damaged (-5). 02577_ Overheating: Beam Rifle damaged (-4). 02577_ Overheating: Imp. Ion Engine damaged (-15). 02577_ Overheating: Lgt. Treads damaged (-29). 02577_ G-34 Mercenary calls for garrison reinforcements. 02577_ ALERT: Activating Garrison Access S001. 02578_ Overheating: Matter decay (-34). 02579_ Overheating: Core damaged (-64). Map ----- +----------------------------------------------------+ | ????????????????########### #???###!##?????????? | | ??????????????????????????# #????#! #?????????? | | ??????????????????????????# #????#! !#?????????? | | ??????????????????????????# #????#! !#?????????? | | ??????????????????????????# #????#! !#?????????? | | ??????????????????????????# #????#####?????????? | | ??????????????????????????# #??????????????????? | | ??????????????????????????# #??????????????????? | | ??????????????????????????# #??????????????????? | | ??????????????????????????# #??????????????????? | | ??????????????????????????# #??????????????????? | | ??????????????????????????# #??????????????????? | | ??????????????????????????# #??????????????????? | | ??????????????????????????# #??????????????????? | | ??????????????????????????# #??????????????????? | | ?????????????????# ##### ########+#####?????? | | ?????????????????# ???? | | ?????????????????########## #????????? | | ?????????????????#""??????# #????????? | | ?????????????????#"Y"?????# ###########????????? | | ????????????????##" "###### #?? ???????????? | | ????????????????# # #?""" "????????????? | | ????????????????# r !!#%* # """ ""???????????? | | ????????????????# *#g%!# """ ""???????????? | | ???????????????## * r!=[/k*%+ """ ""???????????? | | ???????????????# [%! ]=*@# # """ ""???????????? | | ???????????????## = [===# # ??????????? | | ????????????????# !%!# #? ???????????? | | ????????????????# * # #??######??????????? | | ????????????????########### #??????????????????? | | ??????????????????????????# #??????????????????? | | ??????????????????????????# #??????????????????? | | ??????????????????????????# #??????????????????? | | ??????????????????????????# #??????????????????? | | ??????????????????????????+ +??????????????????? | | ??????????????????????????# #??????????????????? | | ??????????????????????????# #??????????????????? | | ??????????????????????????# +??????????????????? | | ??????????????????????????# #??????????????????? | | ??????????????????????????# #??????????????????? | | ??????????????????????????# #??????????????????? | | ??????????????????????????? ???????????????????? | | ??????????????????????????? ???????????????????? | | ?????????????????????????????????????????????????? | | ?????????????????????????????????????????????????? | | ?????????????????????????????????????????????????? | | ?????????????????????????????????????????????????? | | ?????????????????????????????????????????????????? | | ?????????????????????????????????????????????????? | | ?????????????????????????????????????????????????? | +----------------------------------------------------+ Best States ------------- Heat Dissipation 52 Energy Generation 12 Energy Capacity 265 Matter Stores 300 Matter Capacity 300 Sight Range 18 Terrain Scan Range 16 Terrain Scan Density 10 Armor Coverage 150 Evasion (%) 55 Recoil Reduction 3 Item Schematics ----------------- Hcp. Storage Unit | -10/Materials | Hacked Melee Analysis Suite | -9/Materials | Scanalyzed Hcp. Matter Pod | -9/Materials | Scanalyzed Hacking Suite | -9/Materials | Scanalyzed Huge Storage Unit | -9/Materials | Scanalyzed Sensor Array | -9/Materials | Scanalyzed Structural Scanner | -9/Materials | Scanalyzed Lgt. Armor Plating | -9/Materials | Scanalyzed Katana | -9/Materials | Scanalyzed Hrd. Light Armor Plating | -9/Materials | Scanalyzed Robot Schematics ------------------ None Fabricated ------------ Nothing Alien Tech Used ----------------- None Achievements -------------- None Challenges ------------ None Game ------ Seed AlphaPointySabre Manual? 0 Play Time 00:27:04 Cumulative 47.3 hours Start 2024.05.02 @ 11:58:08 End 2024.05.02 @ 12:28:59 Sessions 1 Manual Loads 0 Difficulty Rogue Special Mode None Game No. 31 Rogue 31 Adventurer 0 Explorer 0 Win Type - Total 0 Types 0/0/0/0/0/0/0/0/0 Lore% 29 Gallery% 44 Achievement% 33 Wizard Run 0 Options --------- Layout 2 ASCII 0 Keyboard 1 Movement Numpad Keybinds 0 Fullscreen 2 Font 24/Smallcaps Map View 50x49 Zoom Use 0% Tactical HUD 1 Map Filters NONE Filters NONE Steam 1 RUN: 2f8a7437-2e4e-4daf-8508-fddfaca08016